Cogmind - Beta 10.1 @@@ ROGUE MODE // 2020.10.24 @ 21:24:51 Player: Beleaguer Result: Self-destructed Performance ------------- Evolutions (2) 1000 Regions Visited (3) 600 Robots Destroyed (21) 105 Value Destroyed (441) 441 Prototype IDs (0) 0 Alien Tech Used (0) 0 Bonus (0) 0 TOTAL SCORE: 2146 Bonus ------- None Cogmind --------- Core Integrity 514/550 Matter 18/300 Energy 24/100 System Corruption 0% Temperature Cool (1) Movement Flying (40) Location -8/Materials Parts ------- > --- POWER (1) -------- (None) > --- PROPULSION (3) --- VTOL Module > --- UTILITY (5) ------ Heat Sink Weight Redist. System Signal Interpreter > --- WEAPON (2) ------- Mini Grenade Launcher > --- INVENTORY (4) ---- Compact Battery (74) Advanced Weight Redist. System Maneuvering Thrusters Mini Grenade Launcher Peak State ------------ > --- POWER ------------ Light Nuclear Core > --- PROPULSION ------- VTOL Module VTOL Module VTOL Module > --- UTILITY ---------- Heat Sink Weight Redist. System Sensor Array Signal Interpreter > --- WEAPON ----------- Mini Grenade Launcher Datajack > --- INVENTORY -------- Mini Grenade Launcher [Rating: 17] Favorites ----------- Power Ion Engine Engine Ion Engine Power Core Light Nuclear Core Propulsion Wheel Wheel Wheel Flight Unit VTOL Module Utility Heat Sink Device Heat Sink Storage Small Storage Unit Processor Signal Interpreter Weapon Light Assault Rifle Energy Gun Small Laser Ballistic Gun Light Assault Rifle Launcher Mini Grenade Launcher Special Melee Weapon Datajack Build | -11 -10 -9 -8 ------- Run | Scr Mat Mat Mat Slots Evolved 4 | . . 2 2 Power . | . . . . Propulsion 1 | . . . 1 Utility 3 | . . 2 1 Weapon . | . . . . Parts Attached 22 | 6 8 7 1 Power 2 | 1 1 . . Engine 1 | 1 . . . Core 1 | . 1 . . Reactor . | . . . . Propulsion 8 | 2 3 2 1 Treads . | . . . . Leg . | . . . . Wheel 3 | 2 1 . . Hover . | . . . . Flight 5 | . 2 2 1 Utility 6 | 1 2 3 . Device 4 | . 2 2 . Storage 1 | 1 . . . Processor 1 | . . 1 . Hackware . | . . . . Protection . | . . . . Artifact . | . . . . Weapon 6 | 2 2 2 . Energy Gun 1 | 1 . . . Energy Cannon . | . . . . Ballistic Gun 1 | 1 . . . Ballistic Cannon . | . . . . Launcher 3 | . 2 1 . Special Weapon . | . . . . Impact Weapon . | . . . . Slashing Weapon . | . . . . Piercing Weapon . | . . . . Special Melee Weapon 1 | . . 1 . Unidentified Prototypes . | . . . . Parts Lost 6 | . 1 1 4 Power 2 | . 1 . 1 Propulsion 1 | . . . 1 Utility 2 | . . 1 1 Weapon 1 | . . . 1 Highest Loss Streak 4 | . 1 1 4 Average Slot Usage (%) 93 | . 97 92 78 Engine 7 | . 11 . . Core 4 | . 2 11 7 Wheel 16 | . 25 . . Flight 8 | . 2 22 17 Device 17 | . 13 26 27 Storage 8 | . 12 . . Processor 3 | . . 11 9 Energy Gun 3 | . 5 . . Ballistic Gun 9 | . 14 1 . Launcher 8 | . 8 11 9 Special Melee Weapon 3 | . . 9 8 Naked Turns . | . . . . Heaviest Build 14 | 11 14 9 9 Greatest Support 26 | 26 26 16 16 Greatest Overweight (x) 1 | 1 . . . Average Overweight (x) . | . . . . Largest Inventory Capacity 6 | 6 6 4 4 Average Capacity 5 | 4 5 4 4 Most Carried 6 | 4 6 4 4 Average Carried 2 | 1 3 2 3 Final Capacity 6 | 6 4 4 4 Final Carried 4 | 1 4 2 4 Class Distribution -------------------- 100% | Mutant Dominant Class ---------------- Mutant | -10/Materials Mutant | -9/Materials Mutant | -8/Materials Resources | -11 -10 -9 -8 ----------- Run | Scr Mat Mat Mat Matter Collected 395 | 197 162 36 . Remotely . | . . . . Salvage Created 378 | . 300 75 3 Parts 42 | . 28 13 1 Haulers Intercepted 2 | . 1 1 . Recyclers Shooed . | . . . . Parts Field Recycled . | . . . . Retrieved Matter . | . . . . Parts Self-Destructed . | . . . . Prevented . | . . . . Kills | -11 -10 -9 -8 ------- Run | Scr Mat Mat Mat Combat Hostiles Destroyed 10 | . 6 4 . Guns 3 | . 3 . . AOE 7 | . 3 4 . Classes Destroyed 7 | . 5 2 . Tunneler 3 | . 2 . 1 Hauler 2 | . 1 1 . Mechanic 1 | . . 1 . Operator 1 | . 1 . . Watcher 4 | . 2 2 . Swarmer 4 | . . 4 . Grunt 6 | . 6 . . Best Kill Streak 6 | . 3 6 1 Combat Bots Only 4 | . 2 4 . Max Kills in Single Turn 2 | . 2 2 1 Gunslinging . | . . . . Exploded 2 | . 1 2 . Melee . | . . . . Uniques/NPCs Destroyed . | . . . . Combat | -11 -10 -9 -8 -------- Run | Scr Mat Mat Mat Damage Taken 650 | . 373 120 157 Core 240 | . 133 71 36 Absorbed by Shields . | . . . . Core Remaining (%) 76 | 100 46 82 . Volleys Fired 40 | . 27 12 1 Largest 2 | . 2 1 1 Hottest 60 | . 60 30 30 Shots Fired 62 | . 49 12 1 Gun 36 | . 36 . . Cannon . | . . . . Launcher 26 | . 13 12 1 Special . | . . . . Kinetic 27 | . 27 . . Thermal 9 | . 9 . . Explosive 26 | . 13 12 1 Electromagnetic . | . . . . Robot Hit Streak 13 | . 13 5 . Robot Miss Streak 1 | . 1 . . Penetration Max . | . . . . Secondary Targets 1 | . 1 . . Max Gunslinging Chain 1 | . 1 . . Shots Hit Robots 36 | . 31 4 1 Core Hits 35 | . 24 10 1 Critical Hits . | . . . . Critical Kills . | . . . . Critical Parts Destroyed . | . . . . Melee Attacks 7 | . . 4 3 Impact . | . . . . Slashing . | . . . . Piercing . | . . . . Sneak Attacks 2 | . . 2 . Combat Hostiles . | . . . . Follow-up Attacks . | . . . . Damage Inflicted 1335 | . 745 495 95 Guns 235 | . 235 . . Cannons . | . . . . Explosions 1100 | . 510 495 95 Melee . | . . . . Ramming . | . . . . Kinetic 157 | . 157 . . Thermal 78 | . 78 . . Explosive 1100 | . 510 495 95 Electromagnetic . | . . . . Impact . | . . . . Slashing . | . . . . Piercing . | . . . . Highest Corruption . | . . . . Average Corruption . | . . . . Corruption Purged . | . . . . Overload Shots . | . . . . Overflow Damage 33 | . 4 22 7 Projectiles . | . . . . Explosions 33 | . 4 22 7 Melee . | . . . . Knockbacks . | . . . . Impact . | . . . . Kinetic . | . . . . Secondary . | . . . . Self-Inflicted Damage 140 | . 124 16 . Shots 4 | . 3 1 . Rammed . | . . . . Targets Rammed . | . . . . Kicked . | . . . . Crushed . | . . . . Highest Temperature 129 | . 129 . . Average Temperature 57 | . 57 . . Received Heat Transfer 207 | . 144 9 54 Siege Activations . | . . . . Robots Corrupted . | . . . . Combat Hostiles . | . . . . Parts Fried . | . . . . Impact Corruptions . | . . . . Robots Melted . | . . . . Combat Hostiles . | . . . . Parts Melted . | . . . . Heat Transferred 175 | . 175 . . Parts Sabotaged . | . . . . Parts Stolen . | . . . . Parts Stripped . | . . . . Power Chain Reactions . | . . . . Missiles Intercepted . | . . . . Alert | -11 -10 -9 -8 ------- Run | Scr Mat Mat Mat Peak Influence 232 | . 232 223 138 Initial 93 | . . 27 93 Average 97 | . 99 117 104 Maximum Alert Level 1 | . 1 1 . Low Security (%) 83 | 100 83 63 100 Level 1 16 | . 16 36 . Level 2 . | . . . . Level 3 . | . . . . Level 4 . | . . . . Level 5 . | . . . . High Security . | . . . . Max Security . | . . . . Squads Dispatched 1 | . . . 1 Investigation . | . . . . Extermination . | . . . . Reinforcement 1 | . . . 1 Assault . | . . . . Garrison . | . . . . Intercept . | . . . . Construction Impeded . | . . . . Haulers Reinforced . | . . . . Stealth | -11 -10 -9 -8 --------- Run | Scr Mat Mat Mat Distress Signals 2 | . . 1 1 Communications Jammed . | . . . . Distress Signals . | . . . . Times Spotted 33 | . 9 8 16 Peak Tracking Total 12 | . 2 9 12 Tactical Retreats 3 | . . 2 1 Traps | -11 -10 -9 -8 ------- Run | Scr Mat Mat Mat Traps Triggered 1 | . . 1 . Indirectly . | . . . . Trap Hack Attempts . | . . . . Triggered . | . . . . Disarmed . | . . . . Reprogrammed . | . . . . Reused . | . . . . Traps Extracted . | . . . . Installed . | . . . . Triggered . | . . . . Machines | -11 -10 -9 -8 ---------- Run | Scr Mat Mat Mat Machines Disabled 4 | . 1 3 . Max in Single Turn 1 | . 1 1 . Machines Sabotaged . | . . . . Garrisons Compromised . | . . . . Overloaded Fab Kills . | . . . . Fab Network Shutdowns . | . . . . Hacking | -11 -10 -9 -8 --------- Run | Scr Mat Mat Mat Machines Accessed 2 | . 2 . . Terminals 1 | . 1 . . Fabricators . | . . . . Repair Stations . | . . . . Recycling Units 1 | . 1 . . Scanalyzers . | . . . . Garrison Access . | . . . . Total Hacks 2 | . 2 . . Successful 2 | . 2 . . Failed . | . . . . Catastrophic . | . . . . Database Lockouts . | . . . . Manual . | . . . . Terminals 1 | . 1 . . Fabricators . | . . . . Repair Stations . | . . . . Recycling Units 1 | . 1 . . Scanalyzers . | . . . . Garrison Access . | . . . . Terminal Hacks 1 | . 1 . . Record 1 | . 1 . . Fabricator Hacks . | . . . . Repair Station Hacks . | . . . . Recycling Unit Hacks 1 | . 1 . . Report Inventory 1 | . 1 . . Scanalyzer . | . . . . Garrison Access Hacks . | . . . . Unauthorized Hacks . | . . . . Terminals . | . . . . Fabricators . | . . . . Repair Stations . | . . . . Recycling Units . | . . . . Scanalyzers . | . . . . Garrison Access . | . . . . Data Cores Recovered 1 | . 1 . . Used . | . . . . Hacking Detections 2 | . 2 . . Full Trace Events . | . . . . Feedback Events . | . . . . Feedback Blocked . | . . . . Robot Schematics Acquired . | . . . . Robots Built . | . . . . Matter . | . . . . Time . | . . . . Total Robot Build Rating . | . . . . Part Schematics Acquired . | . . . . Parts Built . | . . . . Matter . | . . . . Time . | . . . . Total Part Build Rating . | . . . . Parts Repaired . | . . . . Time . | . . . . Parts Recycled . | . . . . Recycled Matter . | . . . . Retrieved Matter . | . . . . Retrieved Components . | . . . . Parts Scanalyzed . | . . . . Part Schematics Acquired . | . . . . Parts Damaged . | . . . . Bothacking | -11 -10 -9 -8 ------------ Run | Scr Mat Mat Mat Used RIF Installer . | . . . . Robots Hacked 2 | . . 2 . Non-combat 2 | . . 2 . Combat . | . . . . Robot Hacks Applied 2 | . . 2 . parse_system 2 | . . 2 . Relay Couplers Released . | . . . . Robots Rewired . | . . . . Allies Hacked . | . . . . Hacks Repelled . | . . . . Allies | -11 -10 -9 -8 -------- Run | Scr Mat Mat Mat Total Allies . | . . . . Largest Group . | . . . . Highest-Rated Group . | . . . . Highest-Rated Ally . | . . . . Total Orders . | . . . . Ally Attacks . | . . . . Total Damage . | . . . . Kills . | . . . . Allies Corrupted . | . . . . Allies Melted . | . . . . Intel | -11 -10 -9 -8 ------- Run | Scr Mat Mat Mat Robot Analysis Total . | . . . . Derelict Logs Recovered . | . . . . Drone Launches . | . . . . Drone Recoveries . | . . . . Exploration | -11 -10 -9 -8 ------------- Run | Scr Mat Mat Mat Turns Passed 760 | 48 461 135 116 Spaces Moved 966 | 40 437 225 264 Core 12 | 12 . . . Treads . | . . . . Legs . | . . . . Wheels 349 | 28 321 . . Hover . | . . . . Flight 605 | . 116 225 264 Fastest Speed 37 | 50 37 37 37 Average Speed 56 | 88 74 37 37 Slowest Speed 100 | 100 90 37 40 Overloaded Moves . | . . . . Propulsion Burnouts . | . . . . Robots Hopped . | . . . . Cave-ins Triggered . | . . . . Exploration Rate (%) 36 | 3 82 30 31 Regions Visited 3 Branch Regions . Pre-discovered Areas . | . . . . Known Exits Taken 1 | . . 1 . Unknown Exits Taken 2 | 1 1 . . Scrap Searched . | . . . . Spaces Dug 10 | . . 10 . Terrain Destroyed 212 | . 111 97 4 Melee . | . . . . Projectile . | . . . . AOE 212 | . 111 97 4 Terrain Rammed . | . . . . Walls Destroyed . | . . . . Machines Disabled . | . . . . Actions | -11 -10 -9 -8 --------- Run | Scr Mat Mat Mat Total 1121 | 52 530 260 279 Wait 40 | . 32 5 3 Move 963 | 39 436 224 264 Hop . | . . . . Pick Up 32 | 7 16 5 4 Fast Attach . | . . . . Attach 14 | 6 3 4 1 Detach 1 | . . . 1 Swap 8 | . 5 3 . Drop 16 | . 11 3 2 Fire 40 | . 27 12 1 Melee 7 | . . 4 3 Ram . | . . . . Kick . | . . . . Crush . | . . . . Escape Stasis . | . . . . Rewire . | . . . . Trap . | . . . . Miscellaneous . | . . . . Route ------- -11/Scrapyard -10/Materials (discovered 3 exits: *Mat x2 / [*Min]) -9/Materials -8/Materials History --------- Turn | Location | Event 12 | -11/Scrapyard | Discovered new exit (range 15) 49 | -11/Scrapyard | Entered Materials 178 | -10/Materials | Discovered new exit (range 15) 305 | -10/Materials | Discovered new exit (range 10) 311 | -10/Materials | Build established: Mutant 314 | -10/Materials | Core integrity fell below 50% 505 | -10/Materials | Discovered new exit (range 15) 510 | -10/Materials | Entered another Materials area 510 | -9/Materials | Evolved 2 slots: Utility x2 642 | -9/Materials | Discovered new exit (range 5) 645 | -9/Materials | Identified exit to Materials 645 | -9/Materials | Entered another Materials area 645 | -8/Materials | Evolved 2 slots: Propulsion x1, Utility x1 761 | -8/Materials | Self-destructed Last Messages --------------- 00650_ Acquired Com. Battery. 00657_ Acquired Adv. Weight Redist. System. 00721_ Dropped Com. Battery. 00721_ Extracted 4 energy. 00722_ Acquired Com. Battery. 00741_ O-16 Technician sends out distress signal. 00745_ Jacked W-25 Informer... 00747_ Lgt. Nuclear Core destroyed. 00747_ ALERT: Hostiles spotted, dispatching reinforcements to Terminal M003. 00749_ Dropped VTOL Module. 00750_ Acquired Maneuvering Thrusters. 00751_ T-07 Excavator destroyed. 00751_ Destroyed Wheel. 00751_ U-05 Engineer lays Concrete. 00755_ VTOL Module destroyed. 00755_ U-05 Engineer lays Concrete. 00759_ Datajack destroyed. 00759_ U-05 Engineer lays Concrete. 00760_ Sensor Array destroyed. Map ----- +----------------------------------------------------+ | ????????????????????????????????? | | ????????????????????????????????? | | ????????????????????????????????? | | ????????????????????????????????? | | ????????????????????????????????? | | ????????????????????????????????? | | ????????????????????????????????? | | ????????????????????????????????? | | ????????????????????????????????? | | ????????????????????????????????? | | ????????????????????????????????? | | ?????????????????????????? ????? | | ????????????????????????? """ ? | | ?????????????????????????# """ ? | | ?????????????????????????? | | ????????????########?????? ! | | ????????????#!!==!!#?????? = | | ????????????#!!==!!#?????? ? | | ????######### #?????? ?? | | ????# # ######## #+# | | ????# ! = # | | ????# # | | ????# wY # | | ????# # | | ????# t au a == # | | ????# @ ###+###### == | | ????### r### # ### | | ??????# #?#" """ + = / | | ??????# #?#" """ / ####+##### | | ??????# #?#" """ #? ???? | | ??????# #?#T # #???? | | ?????? ?#" """ # """ #???? | | ?????# =?#" """ #! """ #???? | | ?????+ T ?#" """ # """ #???? | | ?????# ## # #???? | | ?????# ]#?################???? | | ?????### ###????????????????????? | | ???????? ???????????????????????? | | ???????? ???????????????????????? | | ????????????????????????????????? | | ????????????????????????????????? | | ????????????????????????????????? | | ????????????????????????????????? | | ????????????????????????????????? | | ????????????????????????????????? | | ????????????????????????????????? | | ????????????????????????????????? | | ????????????????????????????????? | | ????????????????????????????????? | | ????????????????????????????????? | +----------------------------------------------------+ Best States ------------- Heat Dissipation 41 Energy Generation 14 Energy Capacity 250 Matter Stores 300 Matter Capacity 300 Sight Range 16 Robot Scan Range 10 Terrain Scan Density 10 Additional Mass Support 6 Evasion (%) 62 Item Schematics ----------------- None Robot Schematics ------------------ None Fabricated ------------ Nothing Alien Tech Used ----------------- None Achievements -------------- None Challenges ------------ None Game ------ Seed TransdimensionalResetMatrix Manual? 0 Play Time 00:28:07 Cumulative 85.0 hours Start 2020.10.24 @ 20:56:32 End 2020.10.24 @ 21:24:51 Sessions 1 Manual Loads 0 Difficulty Rogue Special Mode None Game No. 22 Rogue 17 Adventurer 5 Explorer 0 Win Type - Total 0 Types 0/0/0/0/0/0/0/0/0 Lore% 18 Gallery% 25 Achievement% 14 Wizard Run 0 Options --------- ASCII 0 Keyboard 0 Movement Numpad Keybinds 0 Fullscreen 0 Font 16/SmallcapsGlow Map View 76x50 Tactical HUD 1 Map Filters NONE Filters NONE Steam 1 RUN: d1af328e-7a33-411f-825c-4cafc1651b15